Cogmind - Beta 16.1 @@@ ROGUE MODE // 2026.02.24 @ 12:33:02 Player: eVander Result: Destroyed by Y-45 Defender with Heavy Assault Rifle Performance ------------- Evolutions (0) 0 Regions Visited (2) 400 Robots Destroyed (11) 55 Value Destroyed (311) 311 Prototype IDs (0) 0 Alien Tech Used (0) 0 Bonus (0) 0 TOTAL SCORE: 766 Bonus ------- None Cogmind --------- Core Integrity 0/250 Matter 300/300 Energy 100/100 System Corruption 2% Temperature Cool (9) Movement Core (350) Ox6 Location -10/Mines Parts ------- > --- POWER (1) -------- (None) > --- PROPULSION (2) --- (None) > --- UTILITY (2) ------ Large Storage Unit > --- WEAPON (2) ------- (None) > --- INVENTORY (15) --- Light Treads Scrap Suit Peak State ------------ > --- POWER ------------ (None) > --- PROPULSION ------- Light Treads Light Treads > --- UTILITY ---------- Improved Heat Sink Large Storage Unit > --- WEAPON ----------- Small Laser > --- INVENTORY -------- Aluminum Leg Aluminum Leg Scrap Suit [Rating: 8] Favorites ----------- Power Ion Engine Engine Ion Engine Propulsion Light Treads Treads Light Treads Leg Aluminum Leg Utility Large Storage Unit Device Heat Sink Storage Large Storage Unit Weapon Small Laser Energy Gun Small Laser Build | -11 -10 -10 ------- Run | Yrd Mat Min Slots Evolved . | . . . Power . | . . . Propulsion . | . . . Utility . | . . . Weapon . | . . . Parts Attached 12 | 6 3 3 Power 2 | 1 1 . Engine 2 | 1 1 . Core . | . . . Reactor . | . . . Propulsion 4 | 2 . 2 Treads 2 | 2 . . Leg 2 | . . 2 Wheel . | . . . Hover . | . . . Flight . | . . . Utility 4 | 1 2 1 Device 2 | . 1 1 Storage 2 | 1 1 . Processor . | . . . Hackware . | . . . Protection . | . . . Artifact . | . . . Weapon 2 | 2 . . Energy Gun 2 | 2 . . Energy Cannon . | . . . Ballistic Gun . | . . . Ballistic Cannon . | . . . Launcher . | . . . Special Weapon . | . . . Impact Weapon . | . . . Slashing Weapon . | . . . Piercing Weapon . | . . . Special Melee Weapon . | . . . Unidentified Prototypes . | . . . Parts Lost 6 | . 1 5 Power 2 | . 1 1 Propulsion 2 | . . 2 Utility 1 | . . 1 Weapon 1 | . . 1 Highest Loss Streak 3 | . 1 3 To Critical Strikes . | . . . Average Backups 2 | 1 2 2 Power . | . . . Propulsion 1 | 1 2 1 Utility . | . . . Weapon . | . . . Tool/Special . | . . . Unused Backups 2 | 1 . 1 Power 1 | 1 . . Propulsion . | . . . Utility 1 | . . 1 Weapon . | . . . Tool/Special . | . . . Average Slot Usage (%) 82 | . 94 72 Engine 8 | . 13 4 Treads 25 | . 28 24 Device 11 | . 9 13 Storage 14 | . 14 14 Energy Gun 20 | . 27 13 Peak Build Rating 8 | 6 7 8 Average Rating 6 | 4 6 6 On Entrance 4 | . 6 6 Avg Prop Armor Cover (%) . | . . . Naked Turns . | . . . Heaviest Build 28 | 12 28 25 Greatest Support 40 | 40 40 40 Greatest Overweight (x) 2 | . . 2 Average Overweight (x) . | . . . Largest Inventory Capacity 15 | 8 15 15 Average Capacity 12 | 6 10 15 Most Carried 5 | 5 3 4 Average Carried 2 | 1 2 2 Final Capacity 15 | 8 15 15 Final Carried 3 | 2 2 3 Class Distribution -------------------- 100% | Mutant Dominant Class ---------------- Mutant | -10/Materials Mutant | -10/Mines Resources | -11 -10 -10 ----------- Run | Yrd Mat Min Matter Collected 305 | 260 35 10 Remotely . | . . . Salvage Created 442 | . 293 149 Parts 21 | . 16 5 Haulers Intercepted . | . . . Recyclers Shooed . | . . . Parts Field Recycled . | . . . Retrieved Matter . | . . . Parts Self-Destructed . | . . . Prevented . | . . . Parts Restored . | . . . Kills | -11 -10 -10 ------- Run | Yrd Mat Min Combat Hostiles Destroyed 10 | . 7 3 Guns 10 | . 7 3 Classes Destroyed 4 | . 3 1 Recycler 1 | . 1 . Swarmer 3 | . 3 . Grunt 6 | . 4 2 Sentry 1 | . . 1 Best Kill Streak 3 | . 3 2 Combat Bots Only 3 | . 3 2 Max Kills in Single Turn 1 | . 1 1 Gunslinging . | . . . Exploded . | . . . Melee . | . . . Uniques/NPCs Destroyed . | . . . Combat | -11 -10 -10 -------- Run | Yrd Mat Min Hostile Shots Fired 105 | . 34 71 Missed 37 | . 9 28 Hits 68 | . 25 43 Projectile 68 | . 25 43 Critical Strikes 2 | . 2 . Damage Taken 895 | . 289 606 Core 253 | . 45 208 Absorbed by Shields . | . . . Core Remaining (%) 100 | 100 . . Volleys Fired 50 | . 15 35 Largest 2 | . 2 1 Hottest 80 | . 80 40 Shots Fired 66 | . 30 36 Gun 66 | . 30 36 Cannon . | . . . Launcher . | . . . Special . | . . . Kinetic . | . . . Thermal 66 | . 30 36 Explosive . | . . . Electromagnetic . | . . . Robot Hit Streak 8 | . 6 8 Robot Miss Streak 2 | . 2 2 Penetration Max . | . . . Secondary Targets 1 | . 1 . Max Gunslinging Chain 1 | . 1 . Shots Hit Robots 46 | . 19 27 Core Hits 23 | . 14 9 Critical Kills . | . . . Critical Parts Destroyed . | . . . Critical Strikes . | . . . Melee Attacks . | . . . Impact . | . . . Slashing . | . . . Piercing . | . . . Sneak Attacks . | . . . Combat Hostiles . | . . . Follow-up Attacks . | . . . Damage Inflicted 573 | . 250 323 Guns 547 | . 233 314 Cannons . | . . . Explosions . | . . . Melee . | . . . Ramming 26 | . 17 9 Kinetic . | . . . Thermal 547 | . 233 314 Explosive . | . . . Electromagnetic . | . . . Impact . | . . . Slashing . | . . . Piercing . | . . . Highest Corruption 2 | . 2 2 Average Corruption 2 | . 2 2 Corruption Purged . | . . . Corruption Blocked . | . . . Effects 4 | . 1 3 Energy Discharges 2 | . 1 1 Parts Rejected 1 | . . 1 Misfires 1 | . . 1 Overload Shots . | . . . Overflow Damage . | . . . Projectiles . | . . . Explosions . | . . . Melee . | . . . Knockbacks . | . . . Impact . | . . . Kinetic . | . . . Secondary . | . . . Self-Inflicted Damage 17 | . 17 . Shots . | . . . Rammed 1 | . . 1 Targets Rammed 9 | . . 9 Kicked 8 | . . 8 Crushed . | . . . Highest Temperature 144 | . 144 4 Average Temperature 70 | . 75 4 Received Heat Transfer 366 | . 135 231 Siege Activations . | . . . Martial Activations . | . . . Shielding Activations . | . . . Robots Disrupted . | . . . Combat Hostiles . | . . . Robots Corrupted . | . . . Combat Hostiles . | . . . Parts Fried . | . . . Impact Corruptions . | . . . Robots Melted . | . . . Combat Hostiles . | . . . Parts Melted 3 | . 2 1 Heat Transferred 1225 | . 525 700 Parts Sabotaged . | . . . Parts Stolen . | . . . Parts Stripped . | . . . Power Chain Reactions . | . . . Alert | -11 -10 -10 ------- Run | Yrd Mat Min Maximum Alert Level . | . . . Low Security (%) 100 | 100 100 100 Level 1 . | . . . Level 2 . | . . . Level 3 . | . . . Level 4 . | . . . Level 5 . | . . . High Security . | . . . Max Security . | . . . Peak Influence 70 | . 70 40 Initial 15 | . . 15 Average 12 | . 21 5 Influence Increases 235 | . 165 70 Destroy 0b10 Robot/C 200 | . 140 60 Destroy 0b10 Robot/NC 5 | . 5 . Destroy Leader 30 | . 20 10 Influence Decreases 235 | . 125 110 Entered New Map 25 | . . 25 Time Decay 198 | . 125 73 Lost Part 12 | . . 12 Squads Dispatched . | . . . Investigation . | . . . Extermination . | . . . Reinforcement . | . . . Assault . | . . . Garrison . | . . . Intercept . | . . . Searches Triggered . | . . . Construction Impeded . | . . . Haulers Reinforced . | . . . Active Scanning Responses . | . . . Cargo Convoy Interrupts . | . . . Stealth | -11 -10 -10 --------- Run | Yrd Mat Min Distress Signals 1 | . . 1 Communications Jammed . | . . . Distress Signals . | . . . Times Spotted 12 | . 8 4 Peak Tracking Total 3 | . 3 2 Tactical Retreats . | . . . Traps | -11 -10 -10 ------- Run | Yrd Mat Min Traps Triggered . | . . . Indirectly . | . . . Trap Hack Attempts . | . . . Triggered . | . . . Disarmed . | . . . Reprogrammed . | . . . Reused . | . . . Traps Extracted . | . . . Installed . | . . . Triggered . | . . . Machines | -11 -10 -10 ---------- Run | Yrd Mat Min Machines Disabled . | . . . Max in Single Turn . | . . . Machines Repaired . | . . . Machines Dismantled . | . . . Machines Sabotaged . | . . . Overloaded Fab Kills . | . . . Hacking | -11 -10 -10 --------- Run | Yrd Mat Min Machines Accessed 1 | . 1 . Terminals 1 | . 1 . Fabricators . | . . . Repair Stations . | . . . Recycling Units . | . . . Scanalyzers . | . . . Garrison Access . | . . . Total Hacks 2 | . 2 . Successful . | . . . Failed 2 | . 2 . Catastrophic . | . . . Database Lockouts . | . . . Manual 1 | . 1 . Terminals 2 | . 2 . Fabricators . | . . . Repair Stations . | . . . Recycling Units . | . . . Scanalyzers . | . . . Garrison Access . | . . . Terminal Hacks . | . . . Fabricator Hacks . | . . . Repair Station Hacks . | . . . Recycling Unit Hacks . | . . . Scanalyzer . | . . . Garrison Access Hacks . | . . . Unauthorized Hacks . | . . . Terminals . | . . . Fabricators . | . . . Repair Stations . | . . . Recycling Units . | . . . Scanalyzers . | . . . Garrison Access . | . . . Data Cores Recovered . | . . . Used . | . . . Hacking Detections . | . . . Full Trace Events . | . . . Feedback Events . | . . . Feedback Blocked . | . . . Robot Schematics Acquired . | . . . Robots Built . | . . . Authchips . | . . . Time . | . . . Total Robot Build Rating . | . . . Part Schematics Acquired . | . . . Parts Built . | . . . Authchips . | . . . Time . | . . . Total Part Build Rating . | . . . Part Studies Acquired . | . . . Parts Repaired . | . . . Time . | . . . Parts Recycled . | . . . Recycled Matter . | . . . Retrieved Matter . | . . . Retrieved Components . | . . . Parts Scanalyzed . | . . . Part Schematics Acquired . | . . . Parts Damaged . | . . . Bothacking | -11 -10 -10 ------------ Run | Yrd Mat Min Used RIF Installer . | . . . Robots Hacked . | . . . Non-combat . | . . . Combat . | . . . Robot Hacks Applied . | . . . Relay Couplers Released . | . . . Fabnet Peak Effective % . | . . . Robots Rewired . | . . . Allies Hacked . | . . . Hacks Repelled . | . . . Allies | -11 -10 -10 -------- Run | Yrd Mat Min Total Allies . | . . . Largest Group . | . . . Highest-Rated Group . | . . . Highest-Rated Ally . | . . . Total Orders . | . . . Ally Attacks . | . . . Total Damage . | . . . Kills . | . . . Allies Corrupted . | . . . Allies Melted . | . . . Intel | -11 -10 -10 ------- Run | Yrd Mat Min Active Infowar (turns) . | . . . Robot Analysis Total . | . . . Derelict Logs Recovered . | . . . Drone Launches . | . . . Drone Recoveries . | . . . Exploration | -11 -10 -10 ------------- Run | Yrd Mat Min Turns Passed 877 | 65 388 424 Spaces Moved 444 | 41 203 200 Core 14 | 14 . . Treads 426 | 27 203 196 Legs 4 | . . 4 Wheels . | . . . Hover . | . . . Flight . | . . . Fastest Speed 50 | 50 160 160 Average Speed 158 | 122 160 164 Slowest Speed 260 | 160 160 260 Overloaded Moves . | . . . Propulsion Burnouts . | . . . Robots Hopped . | . . . Potential Cave-ins . | . . . Cave-ins Triggered . | . . . Exploration Rate (%) 26 | 3 34 43 Regions Visited 2 Branch Regions 1 Pre-discovered Areas . | . . . Known Exits Taken . | . . . Unknown Exits Taken 2 | 1 1 . Scrap Searched . | . . . Spaces Dug . | . . . Terrain Destroyed . | . . . Melee . | . . . Projectile . | . . . AOE . | . . . Terrain Rammed 3 | . 3 . Walls Destroyed . | . . . Machines Disabled . | . . . Actions | -11 -10 -10 --------- Run | Yrd Mat Min Total 544 | 57 236 251 Wait 7 | 1 5 1 Move 442 | 40 202 200 Hop . | . . . Pick Up 14 | 9 3 2 Fast Attach . | . . . Attach 10 | 6 3 1 Detach 2 | . 2 . Swap 3 | . 1 2 Drop 4 | 1 2 1 Fire 50 | . 15 35 Melee . | . . . Ram 4 | . 3 1 Kick 8 | . . 8 Crush . | . . . Escape Stasis . | . . . Rewire . | . . . Trap . | . . . Miscellaneous . | . . . Route ------- -11/Scrapyard -10/Materials -10/Mines (discovered 1 exit: [*Exi]) History --------- Turn | Location | Event 2 | -11/Scrapyard | Met Revision 17 6 | -11/Scrapyard | Discovered new exit (range 16) 66 | -11/Scrapyard | Entered Materials 314 | -10/Materials | Build established: Mutant 416 | -10/Materials | Discovered new exit (range 9) 454 | -10/Materials | Entered Mines 491 | -10/Mines | Deemed a non-threat by the Exiles lab entrance 493 | -10/Mines | Discovered new exit (range 5) 763 | -10/Mines | Found a Scrap Suit stashed away for nefarious purposes 766 | -10/Mines | Found Scrap Suit 837 | -10/Mines | Core integrity fell below 50% 873 | -10/Mines | Core integrity fell below 20% 878 | -10/Mines | Destroyed by Y-45 Defender with Heavy Assault Rifle Last Messages --------------- 00611_ Dropped Heat Sink. 00741_ System corrupted: FCS attempts to trigger Sml. Laser. 00741_ System corrupted: Sml. Laser misfires. 00763_ A message is left with an item here: "H4-X0R! I managed to smuggle one out! Take this to the hideout, the fools near Old Recycling think they can use this tech to beat 0b10 one day, and now we just have to find a way to safely deliver this to MAIN.C to get on their good side and convince them to let us into the system." 00766_ Acquired Scrap Suit. 00798_ R-06 Scavenger sends out distress signal. 00808_ Lgt. Treads destroyed. 00809_ System corrupted: Energy discharge (-20). 00829_ System corrupted: Aluminum Leg rejected. 00849_ Y-45 Defender destroyed. 00851_ Imp. Heat Sink destroyed. 00860_ Sml. Laser destroyed. 00861_ Kicked Y-45 Defender. 00875_ Aluminum Leg destroyed. 00876_ Slammed into Y-45 Defender. 00876_ Destabilizing: Core damaged (-10). Map ----- +----------------------------------------------------+ | ?????????????????????????????????????????? | | ?????????????????????????????????????????? | | ?????????????????????????????????????????? | | ?????????????????????????????????????????? | | ?????????????????????????????????????????? | | ????#####????????????????????????????????? | | ???## ##???????????????????????????????? | | ??## #############???????????????????? | | ?## #####???????????????? | | ?# ###### #### #???????????????? | | ?# ##????# #??# ### #???????????????? | | ## #####?# #??# #?# ######??????????? | | #?# #??# #?# ## ##?????????? | | ### #?# #??# ### #?????????? | | #### ##????# #??# ##????????? | | ???## #???? #??# ##???????? | | ????# #????# #??##### ##??????? | | ????## #????? ???????#### #??????? | | ?????## ##???? ??????????## #??????? | | ?????## ##??? ???????????## #??????? | | ????## #??? ????????????## ##?????? | | ???## #??? ?????????????## ####??? | | ??## ##??? ?????????####### ##?? | | ??# ###???? ?????????#%% r #?? | | ??# ##???????????######Y%% #?? | | ??## ##???????????# =@%# ### #?? | | #### ##??????????# ###### #?# ##?? | | #??????????# #????# #?# ###??? | | #??????????# #????# #?## ##????? | | ## #???????#### ###### #??####?????? | | ?## #???????# ## #???????????? | | ??### #???????## ## #???????????? | | ????## #????????# ## #???????????? | | ?????# ######??? / #? ????????????? | | ?????# #?? / #? ????????????? | | ?????# #### #?" # #? ????????????? | | ?????# #??# ##" ## #? ????????????? | | ?????# #??# ####? #? ????????????? | | ?????# #??# #???? #?#????????????? | | ?????# #??# #???# #??????????????? | | ?????# #??# #???##########??????????????? | | ?????# #??# #???????????????????????????? | | ?????# #??# #???????????????????????????? | | ?????# #??# #???????????????????????????? | | ?????# ??## #???????????????????????????? | | ?????# ### ##??????????????????????????? | | ?????# #??????????????????????????? | | ?????# ##?????????????????????????? | | ?????##### ##????????????????????????? | | ?????????# #????????????????????????? | +----------------------------------------------------+ Best States ------------- Heat Dissipation 39 Energy Generation 10 Energy Capacity 250 Matter Stores 300 Matter Capacity 300 Sight Range 16 Terrain Scan Density 10 Evasion (%) 40 Recoil Reduction 2 Item Schematics ----------------- None Robot Schematics ------------------ None Fabricated ------------ Nothing Repaired ---------- Nothing Studied --------- None Alien Tech Used ----------------- None Achievements -------------- You Again Challenges ------------ None Game ------ Seed PhasingLauncherMegatreads Manual? 0 Play Time 00:09:51 Cumulative 11.3 hours Start 2026.02.24 @ 12:17:05 End 2026.02.24 @ 12:33:02 Sessions 1 Manual Loads 0 Difficulty Rogue Special Mode None Game No. 36 Rogue 30 Adventurer 6 Explorer 0 Win Type - Total 0 Types 0/0/0/0/0/0/0/0/0/0 Lore% 9 Gallery% 15 Achievement% 12 Wizard Run 0 Options --------- Layout 0 ASCII 0 Keyboard 1 Movement Numpad Keybinds 0 Fullscreen 1 Font 24/Swanston Map View 76x50 Zoom Use 7% Tactical HUD 1 Map Filters NONE Filters NONE Steam 1 RUN: bc9076d7-d5f6-43a3-93a1-a98ebe07ca3d